[Event "Titled Tuesday Blitz May 23 Late 2023"]
[White "Bernabeu Lopez, Carlos Javier"]
[Black "Paichadze, Luka"]
[WhiteFideId "2235366"]
[BlackFideId "13602934"]
[WhiteElo "2344"]
[BlackElo "2540"]
[Result "1-0"]
[Round "05"]
[TimeControl "180+2"]
[Date "2023.05.23"]
[WhiteClock "0:00:28"]
[BlackClock "0:00:00"]

1. e4 {[%clk 0:03:00]}  c6 {[%clk 0:02:57]} 2. Nc3 {[%clk 0:03:00]}  d5 {[%clk 0:02:57]} 3. Nf3 {[%clk 0:03:01]}  Bg4 {[%clk 0:02:56]} 4. h3 {[%clk 0:03:00]}  Bxf3 {[%clk 0:02:55]} 5. Qxf3 {[%clk 0:03:01]}  e6 {[%clk 0:02:55]} 6. d3 {[%clk 0:03:01]}  g6 {[%clk 0:02:52]} 7. g3 {[%clk 0:03:00]}  Bg7 {[%clk 0:02:52]} 8. Bg2 {[%clk 0:03:01]}  Nd7 {[%clk 0:02:51]} 9. O-O {[%clk 0:03:01]}  Ne7 {[%clk 0:02:50]} 10. Bd2 {[%clk 0:03:01]}  O-O {[%clk 0:02:49]} 11. Rae1 {[%clk 0:03:02]}  Qb6 {[%clk 0:02:47]} 12. Rb1 {[%clk 0:02:53]}  Rad8 {[%clk 0:02:39]} 13. Qe2 {[%clk 0:02:53]}  dxe4 {[%clk 0:02:33]} 14. Nxe4 {[%clk 0:02:53]}  Nf5 {[%clk 0:02:30]} 15. Bc3 {[%clk 0:02:52]}  Nd4 {[%clk 0:02:28]} 16. Bxd4 {[%clk 0:02:51]}  Qxd4 {[%clk 0:02:23]} 17. c3 {[%clk 0:02:51]}  Qb6 {[%clk 0:02:22]} 18. d4 {[%clk 0:02:51]}  e5 {[%clk 0:02:10]} 19. dxe5 {[%clk 0:02:48]}  Nxe5 {[%clk 0:02:11]} 20. Rfd1 {[%clk 0:02:47]}  h6 {[%clk 0:02:07]} 21. Nd2 {[%clk 0:02:38]}  Rfe8 {[%clk 0:01:53]} 22. Nf3 {[%clk 0:02:24]}  Nxf3+ {[%clk 0:01:39]} 23. Qxf3 {[%clk 0:02:25]}  Rxd1+ {[%clk 0:01:38]} 24. Qxd1 {[%clk 0:02:23]}  Qa6 {[%clk 0:01:22]} 25. Qb3 {[%clk 0:02:15]}  Bf8 {[%clk 0:01:12]} 26. Bf1 {[%clk 0:02:13]}  Qb6 {[%clk 0:01:07]} 27. Rd1 {[%clk 0:02:02]}  Qc7 {[%clk 0:01:05]} 28. Kg2 {[%clk 0:01:57]}  Re6 {[%clk 0:00:59]} 29. Bc4 {[%clk 0:01:55]}  Rf6 {[%clk 0:00:59]} 30. Rd3 {[%clk 0:01:55]}  Bc5 {[%clk 0:00:56]} 31. Rf3 {[%clk 0:01:55]}  Rxf3 {[%clk 0:00:55]} 32. Kxf3 {[%clk 0:01:56]}  Qe7 {[%clk 0:00:54]} 33. Kg2 {[%clk 0:01:53]}  Qe4+ {[%clk 0:00:53]} 34. Kf1 {[%clk 0:01:51]}  Kg7 {[%clk 0:00:47]} 35. a4 {[%clk 0:01:46]}  Qh1+ {[%clk 0:00:44]} 36. Ke2 {[%clk 0:01:46]}  Qxh3 {[%clk 0:00:43]} 37. Qxb7 {[%clk 0:01:38]}  Qg4+ {[%clk 0:00:42]} 38. Kd3 {[%clk 0:01:38]}  Qf5+ {[%clk 0:00:42]} 39. Kd2 {[%clk 0:01:27]}  Qxf2+ {[%clk 0:00:42]} 40. Kc1 {[%clk 0:01:25]}  Bd6 {[%clk 0:00:25]} 41. Qxc6 {[%clk 0:01:21]}  Bxg3 {[%clk 0:00:25]} 42. b4 {[%clk 0:01:17]}  Be5 {[%clk 0:00:20]} 43. Bb3 {[%clk 0:01:14]}  g5 {[%clk 0:00:15]} 44. a5 {[%clk 0:01:11]}  g4 {[%clk 0:00:15]} 45. b5 {[%clk 0:01:10]}  g3 {[%clk 0:00:15]} 46. Bd5 {[%clk 0:01:11]}  Qe3+ {[%clk 0:00:14]} 47. Kc2 {[%clk 0:01:09]}  Qe2+ {[%clk 0:00:14]} 48. Kb3 {[%clk 0:01:07]}  Qd1+ {[%clk 0:00:13]} 49. Kc4 {[%clk 0:01:03]}  Qa4+ {[%clk 0:00:11]} 50. Kd3 {[%clk 0:01:00]}  Qxa5 {[%clk 0:00:11]} 51. Qc4 {[%clk 0:00:57]}  h5 {[%clk 0:00:09]} 52. Bc6 {[%clk 0:00:46]}  h4 {[%clk 0:00:07]} 53. Qg4+ {[%clk 0:00:46]}  Kf8 {[%clk 0:00:08]} 54. Qc8+ {[%clk 0:00:46]}  Ke7 {[%clk 0:00:08]} 55. Qe8+ {[%clk 0:00:42]}  Kf6 {[%clk 0:00:08]} 56. Qh8+ {[%clk 0:00:43]}  Ke6 {[%clk 0:00:08]} 57. Qe8+ {[%clk 0:00:42]}  Kf6 {[%clk 0:00:08]} 58. Qh8+ {[%clk 0:00:42]}  Kf5 {[%clk 0:00:09]} 59. Bd7+ {[%clk 0:00:37]}  Kg6 {[%clk 0:00:08]} 60. Qxe5 {[%clk 0:00:35]}  Qd8 {[%clk 0:00:06]} 61. Qd6+ {[%clk 0:00:29]}  Kg7 {[%clk 0:00:06]} 62. Qd4+ {[%clk 0:00:29]}  Kf8 {[%clk 0:00:05]} 63. Qh8+ {[%clk 0:00:27]}  Ke7 {[%clk 0:00:06]} 64. Qxd8+ {[%clk 0:00:28]}  Kxd8 {[%clk 0:00:07]} 65. Bh3 {[%clk 0:00:29]}  Kc7 {[%clk 0:00:07]} 66. c4 {[%clk 0:00:28]}  Kb6 {[%clk 0:00:08]} 67. Kd4 {[%clk 0:00:28]}  f5 {[%clk 0:00:08]} 68. Bf1 {[%clk 0:00:28]}  f4 {[%clk 0:00:08]} 69. c5+ {[%clk 0:00:29]}  Kc7 {[%clk 0:00:08]} 70. Ke4 {[%clk 0:00:29]}  Kd7 {[%clk 0:00:06]} 71. Kf3 {[%clk 0:00:29]}  Ke6 {[%clk 0:00:07]} 72. Kxf4 {[%clk 0:00:30]}  Kd5 {[%clk 0:00:07]} 73. c6 {[%clk 0:00:28]}  Kd6 {[%clk 0:00:07]} 74. Kg4 {[%clk 0:00:27]}  a6 {[%clk 0:00:07]} 75. bxa6 {[%clk 0:00:27]}  Kxc6 {[%clk 0:00:00]} 76. Kxh4 {[%clk 0:00:28]} 1-0


[Site "https://www.chess.com"]

[Event "Titled Tuesday Blitz May 23 Late 2023"]
[White "Sethuraman, S.P."]
[Black "Gubajdullin, Alexei"]
[WhiteFideId "5021596"]
[BlackFideId "4141202"]
[WhiteElo "2543"]
[BlackElo "2279"]
[Result "0-1"]
[Round "05"]
[TimeControl "180+2"]
[Date "2023.05.23"]
[WhiteClock "0:00:26"]
[BlackClock "0:00:18"]

1. b3 {[%clk 0:03:00]}  Nf6 {[%clk 0:02:51]} 2. Bb2 {[%clk 0:03:00]}  g6 {[%clk 0:02:51]} 3. Nf3 {[%clk 0:03:00]}  Bg7 {[%clk 0:02:51]} 4. g3 {[%clk 0:03:01]}  O-O {[%clk 0:02:50]} 5. Bg2 {[%clk 0:03:01]}  d6 {[%clk 0:02:50]} 6. O-O {[%clk 0:03:02]}  e5 {[%clk 0:02:50]} 7. c4 {[%clk 0:03:02]}  Nc6 {[%clk 0:02:46]} 8. d4 {[%clk 0:03:01]}  e4 {[%clk 0:02:29]} 9. Ne1 {[%clk 0:03:01]}  Bf5 {[%clk 0:02:24]} 10. Nc3 {[%clk 0:03:00]}  Qd7 {[%clk 0:02:18]} 11. Nc2 {[%clk 0:02:55]}  Bh3 {[%clk 0:02:17]} 12. Qd2 {[%clk 0:02:53]}  Rfe8 {[%clk 0:02:14]} 13. Rad1 {[%clk 0:02:49]}  h5 {[%clk 0:02:12]} 14. Rfe1 {[%clk 0:02:43]}  Bxg2 {[%clk 0:02:11]} 15. Kxg2 {[%clk 0:02:43]}  h4 {[%clk 0:02:10]} 16. Qg5 {[%clk 0:02:09]}  h3+ {[%clk 0:02:07]} 17. Kg1 {[%clk 0:02:09]}  Nh5 {[%clk 0:02:05]} 18. Nd5 {[%clk 0:02:00]}  Ne7 {[%clk 0:01:59]} 19. Nce3 {[%clk 0:01:41]}  Nxd5 {[%clk 0:01:54]} 20. cxd5 {[%clk 0:01:41]}  Kh7 {[%clk 0:01:43]} 21. Qg4 {[%clk 0:01:37]}  Qxg4 {[%clk 0:01:37]} 22. Nxg4 {[%clk 0:01:38]}  f5 {[%clk 0:01:35]} 23. Ne3 {[%clk 0:01:35]}  Bh6 {[%clk 0:01:35]} 24. Nc4 {[%clk 0:01:20]}  Nf6 {[%clk 0:01:32]} 25. Bc1 {[%clk 0:01:13]}  Nxd5 {[%clk 0:01:28]} 26. Bxh6 {[%clk 0:01:13]}  Kxh6 {[%clk 0:01:28]} 27. Rc1 {[%clk 0:01:14]}  Re7 {[%clk 0:01:25]} 28. Na5 {[%clk 0:01:13]}  b6 {[%clk 0:01:21]} 29. Nc6 {[%clk 0:01:12]}  Rf7 {[%clk 0:01:21]} 30. f3 {[%clk 0:01:12]}  e3 {[%clk 0:01:15]} 31. a3 {[%clk 0:01:10]}  g5 {[%clk 0:01:07]} 32. Nb4 {[%clk 0:01:09]}  Nxb4 {[%clk 0:01:03]} 33. axb4 {[%clk 0:01:10]}  a5 {[%clk 0:00:54]} 34. b5 {[%clk 0:01:05]}  a4 {[%clk 0:00:53]} 35. Ra1 {[%clk 0:01:03]}  a3 {[%clk 0:00:52]} 36. Rec1 {[%clk 0:01:03]}  f4 {[%clk 0:00:38]} 37. g4 {[%clk 0:01:00]}  Ra7 {[%clk 0:00:28]} 38. Kf1 {[%clk 0:00:59]}  a2 {[%clk 0:00:28]} 39. Rc2 {[%clk 0:00:57]}  Ra5 {[%clk 0:00:25]} 40. Raxa2 {[%clk 0:00:55]}  Rxb5 {[%clk 0:00:25]} 41. Rc3 {[%clk 0:00:55]}  Rd5 {[%clk 0:00:23]} 42. Rd3 {[%clk 0:00:52]}  c5 {[%clk 0:00:22]} 43. Ra6 {[%clk 0:00:47]}  Rxd4 {[%clk 0:00:20]} 44. Rxd4 {[%clk 0:00:45]}  cxd4 {[%clk 0:00:20]} 45. Rxb6 {[%clk 0:00:46]}  Ra7 {[%clk 0:00:20]} 46. Rxd6+ {[%clk 0:00:43]}  Kh7 {[%clk 0:00:19]} 47. Rd7+ {[%clk 0:00:26]}  Rxd7 {[%clk 0:00:18]} 0-1


[Site "https://www.chess.com"]

[Event "Titled Tuesday Blitz May 23 Late 2023"]
[White "Holt, Conrad"]
[Black "Potapova, Margarita"]
[WhiteFideId "2034387"]
[BlackFideId "14126869"]
[WhiteElo "2592"]
[BlackElo "2244"]
[Result "1-0"]
[Round "05"]
[TimeControl "180+2"]
[Date "2023.05.23"]
[WhiteClock "0:00:58"]
[BlackClock "0:00:02"]

1. d4 {[%clk 0:03:00]}  Nf6 {[%clk 0:02:53]} 2. c4 {[%clk 0:03:01]}  e6 {[%clk 0:02:52]} 3. Nc3 {[%clk 0:03:00]}  Bb4 {[%clk 0:02:50]} 4. Qc2 {[%clk 0:03:01]}  O-O {[%clk 0:02:47]} 5. e4 {[%clk 0:03:01]}  d5 {[%clk 0:02:46]} 6. e5 {[%clk 0:03:01]}  Ne4 {[%clk 0:02:47]} 7. Bd3 {[%clk 0:03:00]}  c5 {[%clk 0:02:47]} 8. Nf3 {[%clk 0:03:01]}  cxd4 {[%clk 0:02:47]} 9. Nxd4 {[%clk 0:03:02]}  Nd7 {[%clk 0:02:46]} 10. Bf4 {[%clk 0:03:02]}  Ndc5 {[%clk 0:02:47]} 11. O-O {[%clk 0:03:02]}  Bxc3 {[%clk 0:02:47]} 12. bxc3 {[%clk 0:03:01]}  b6 {[%clk 0:02:48]} 13. Be2 {[%clk 0:02:58]}  h6 {[%clk 0:02:12]} 14. Rad1 {[%clk 0:02:19]}  Ba6 {[%clk 0:02:02]} 15. cxd5 {[%clk 0:01:55]}  Bxe2 {[%clk 0:02:01]} 16. Nxe2 {[%clk 0:01:55]}  exd5 {[%clk 0:02:02]} 17. c4 {[%clk 0:01:52]}  Qe7 {[%clk 0:01:11]} 18. cxd5 {[%clk 0:01:49]}  g5 {[%clk 0:01:11]} 19. f3 {[%clk 0:01:37]}  gxf4 {[%clk 0:01:07]} 20. fxe4 {[%clk 0:01:37]}  Qxe5 {[%clk 0:01:07]} 21. Rxf4 {[%clk 0:01:37]}  Rae8 {[%clk 0:00:56]} 22. Rg4+ {[%clk 0:01:28]}  Kh8 {[%clk 0:00:56]} 23. Ng3 {[%clk 0:01:28]}  f5 {[%clk 0:00:39]} 24. exf5 {[%clk 0:01:19]}  Qe3+ {[%clk 0:00:37]} 25. Qf2 {[%clk 0:01:16]}  Qe5 {[%clk 0:00:18]} 26. d6 {[%clk 0:01:10]}  Rd8 {[%clk 0:00:12]} 27. Rg6 {[%clk 0:01:02]}  Kh7 {[%clk 0:00:02]} 28. Qd2 {[%clk 0:00:58]} 1-0


[Site "https://www.chess.com"]

[Event "Titled Tuesday Blitz May 23 Late 2023"]
[White "Makridis, Dimitrios"]
[Black "Fiorito, Francisco"]
[WhiteFideId "25864475"]
[BlackFideId "180165"]
[WhiteElo "2277"]
[BlackElo "2341"]
[Result "1-0"]
[Round "05"]
[TimeControl "180+2"]
[Date "2023.05.23"]
[WhiteClock "0:00:38"]
[BlackClock "0:00:50"]

1. e4 {[%clk 0:02:38]}  c5 {[%clk 0:02:58]} 2. Nf3 {[%clk 0:02:35]}  Nc6 {[%clk 0:02:57]} 3. Bb5 {[%clk 0:02:32]}  g6 {[%clk 0:02:57]} 4. O-O {[%clk 0:02:31]}  Bg7 {[%clk 0:02:57]} 5. c3 {[%clk 0:02:30]}  Nf6 {[%clk 0:02:56]} 6. Re1 {[%clk 0:02:29]}  O-O {[%clk 0:02:55]} 7. d4 {[%clk 0:02:28]}  d5 {[%clk 0:02:55]} 8. e5 {[%clk 0:02:28]}  Ne4 {[%clk 0:02:55]} 9. Bxc6 {[%clk 0:02:29]}  bxc6 {[%clk 0:02:55]} 10. Be3 {[%clk 0:02:29]}  Qb6 {[%clk 0:02:54]} 11. Qc1 {[%clk 0:02:28]}  cxd4 {[%clk 0:02:52]} 12. cxd4 {[%clk 0:02:28]}  a5 {[%clk 0:02:46]} 13. Bh6 {[%clk 0:02:08]}  Rb8 {[%clk 0:02:23]} 14. Bxg7 {[%clk 0:02:07]}  Kxg7 {[%clk 0:02:24]} 15. b3 {[%clk 0:02:06]}  Bf5 {[%clk 0:02:13]} 16. Nc3 {[%clk 0:02:04]}  f6 {[%clk 0:02:11]} 17. Na4 {[%clk 0:01:57]}  Qb5 {[%clk 0:02:08]} 18. Qe3 {[%clk 0:01:49]}  Rbc8 {[%clk 0:01:49]} 19. Rac1 {[%clk 0:01:46]}  g5 {[%clk 0:01:38]} 20. Nc5 {[%clk 0:01:21]}  Nxc5 {[%clk 0:01:31]} 21. dxc5 {[%clk 0:00:53]}  Qb7 {[%clk 0:01:07]} 22. Nd4 {[%clk 0:00:47]}  Bd7 {[%clk 0:01:07]} 23. e6 {[%clk 0:00:45]}  Be8 {[%clk 0:01:05]} 24. h4 {[%clk 0:00:46]}  h6 {[%clk 0:00:59]} 25. hxg5 {[%clk 0:00:42]}  fxg5 {[%clk 0:00:54]} 26. Qe5+ {[%clk 0:00:41]}  Kh7 {[%clk 0:00:51]} 27. Nf5 {[%clk 0:00:39]}  Bg6 {[%clk 0:00:50]} 28. Qg7# {[%clk 0:00:38]} 1-0


[Site "https://www.chess.com"]

[Event "Titled Tuesday Blitz May 23 Late 2023"]
[White "Sivakumar, Shaaketh"]
[Black "Kuznetsov, Felix"]
[WhiteFideId "30940176"]
[BlackFideId "34147990"]
[WhiteElo "2174"]
[BlackElo "2281"]
[Result "0-1"]
[Round "05"]
[TimeControl "180+2"]
[Date "2023.05.23"]
[WhiteClock "0:00:05"]
[BlackClock "0:01:27"]

1. e4 {[%clk 0:00:44]}  c5 {[%clk 0:02:54]} 2. Nf3 {[%clk 0:00:39]}  Nc6 {[%clk 0:02:53]} 3. g3 {[%clk 0:00:27]}  d5 {[%clk 0:02:44]} 4. Bg2 {[%clk 0:00:27]}  dxe4 {[%clk 0:02:42]} 5. Ng5 {[%clk 0:00:27]}  f5 {[%clk 0:02:42]} 6. d3 {[%clk 0:00:26]}  exd3 {[%clk 0:02:38]} 7. Nc3 {[%clk 0:00:25]}  Nf6 {[%clk 0:02:35]} 8. O-O {[%clk 0:00:24]}  h6 {[%clk 0:02:28]} 9. Nh3 {[%clk 0:00:20]}  dxc2 {[%clk 0:02:25]} 10. Qxc2 {[%clk 0:00:21]}  Nd4 {[%clk 0:02:20]} 11. Qd3 {[%clk 0:00:20]}  e5 {[%clk 0:02:13]} 12. Be3 {[%clk 0:00:20]}  Nf3+ {[%clk 0:02:10]} 13. Bxf3 {[%clk 0:00:19]}  Qxd3 {[%clk 0:02:10]} 14. Rfd1 {[%clk 0:00:19]}  Qa6 {[%clk 0:02:00]} 15. Be2 {[%clk 0:00:11]}  c4 {[%clk 0:01:57]} 16. b3 {[%clk 0:00:11]}  Be6 {[%clk 0:01:48]} 17. a4 {[%clk 0:00:09]}  f4 {[%clk 0:01:39]} 18. Nb5 {[%clk 0:00:05]}  Qxb5 {[%clk 0:01:38]} 19. axb5 {[%clk 0:00:05]}  fxe3 {[%clk 0:01:39]} 20. Kg2 {[%clk 0:00:05]}  cxb3 {[%clk 0:01:35]} 21. fxe3 {[%clk 0:00:05]}  Bxh3+ {[%clk 0:01:32]} 22. Kxh3 {[%clk 0:00:06]}  Bc5 {[%clk 0:01:32]} 23. Rab1 {[%clk 0:00:05]}  Bxe3 {[%clk 0:01:32]} 24. Rxb3 {[%clk 0:00:06]}  Bd4 {[%clk 0:01:33]} 25. Bf3 {[%clk 0:00:06]}  O-O {[%clk 0:01:31]} 26. Bxb7 {[%clk 0:00:06]}  Rab8 {[%clk 0:01:31]} 27. Bc6 {[%clk 0:00:07]}  Rfd8 {[%clk 0:01:31]} 28. Ra3 {[%clk 0:00:07]}  e4 {[%clk 0:01:30]} 29. Ra4 {[%clk 0:00:07]}  Bb6 {[%clk 0:01:27]} 30. Rxd8+ {[%clk 0:00:07]}  Rxd8 {[%clk 0:01:27]} 31. Bxe4 {[%clk 0:00:07]}  Nxe4 {[%clk 0:01:28]} 32. Rxe4 {[%clk 0:00:08]}  Rd5 {[%clk 0:01:28]} 33. Rb4 {[%clk 0:00:08]}  Rd2 {[%clk 0:01:28]} 34. Rc4 {[%clk 0:00:07]}  Rb2 {[%clk 0:01:27]} 35. Rc8+ {[%clk 0:00:05]}  Kh7 {[%clk 0:01:27]} 0-1


[Site "https://www.chess.com"]

[Event "Titled Tuesday Blitz May 23 Late 2023"]
[White "Yanchenko, Roman"]
[Black "Haszon, David"]
[WhiteFideId "4137329"]
[BlackFideId "733610"]
[WhiteElo "2491"]
[BlackElo "2210"]
[Result "1-0"]
[Round "05"]
[TimeControl "180+2"]
[Date "2023.05.23"]
[WhiteClock "0:01:37"]
[BlackClock "0:00:12"]

1. d4 {[%clk 0:03:00]}  Nf6 {[%clk 0:02:56]} 2. Nf3 {[%clk 0:03:00]}  e6 {[%clk 0:02:56]} 3. c4 {[%clk 0:03:00]}  d5 {[%clk 0:02:56]} 4. Nc3 {[%clk 0:03:00]}  Nbd7 {[%clk 0:02:56]} 5. Bg5 {[%clk 0:03:00]}  Bb4 {[%clk 0:02:49]} 6. e3 {[%clk 0:03:00]}  O-O {[%clk 0:02:44]} 7. Qc2 {[%clk 0:02:59]}  h6 {[%clk 0:02:43]} 8. Bh4 {[%clk 0:02:59]}  c6 {[%clk 0:02:35]} 9. a3 {[%clk 0:02:58]}  Be7 {[%clk 0:02:28]} 10. Rd1 {[%clk 0:02:57]}  a6 {[%clk 0:02:25]} 11. h3 {[%clk 0:02:55]}  Re8 {[%clk 0:02:20]} 12. Bg3 {[%clk 0:02:53]}  Qa5 {[%clk 0:02:15]} 13. Bd3 {[%clk 0:02:48]}  dxc4 {[%clk 0:01:55]} 14. Bxc4 {[%clk 0:02:49]}  b5 {[%clk 0:01:55]} 15. Bd3 {[%clk 0:02:49]}  c5 {[%clk 0:01:45]} 16. O-O {[%clk 0:02:40]}  c4 {[%clk 0:01:40]} 17. Be2 {[%clk 0:02:37]}  Bb7 {[%clk 0:01:38]} 18. e4 {[%clk 0:02:32]}  Rac8 {[%clk 0:01:26]} 19. Rfe1 {[%clk 0:02:31]}  b4 {[%clk 0:01:18]} 20. axb4 {[%clk 0:02:31]}  Qxb4 {[%clk 0:01:19]} 21. Ra1 {[%clk 0:02:20]}  Qb6 {[%clk 0:01:08]} 22. Ra4 {[%clk 0:01:52]}  Bb4 {[%clk 0:01:02]} 23. Nd2 {[%clk 0:01:53]}  a5 {[%clk 0:00:39]} 24. Nxc4 {[%clk 0:01:46]}  Rxc4 {[%clk 0:00:20]} 25. Bxc4 {[%clk 0:01:46]}  Rc8 {[%clk 0:00:20]} 26. Qd3 {[%clk 0:01:41]}  Nxe4 {[%clk 0:00:15]} 27. Rxe4 {[%clk 0:01:37]}  Bxc3 {[%clk 0:00:15]} 28. bxc3 {[%clk 0:01:37]}  Bxe4 {[%clk 0:00:15]} 29. Qxe4 {[%clk 0:01:38]}  Qb1+ {[%clk 0:00:12]} 30. Qxb1 {[%clk 0:01:37]} 1-0


[Site "https://www.chess.com"]

[Event "Titled Tuesday Blitz May 23 Late 2023"]
[White "Papasimakopoulos, Alexandros"]
[Black "Van Dael, Siem"]
[WhiteFideId "4244125"]
[BlackFideId "1049771"]
[WhiteElo "2359"]
[BlackElo "2336"]
[Result "1-0"]
[Round "05"]
[TimeControl "180+2"]
[Date "2023.05.23"]
[WhiteClock "0:00:19"]
[BlackClock "0:00:00"]

1. d4 {[%clk 0:03:00]}  e6 {[%clk 0:02:58]} 2. c4 {[%clk 0:03:01]}  b6 {[%clk 0:02:59]} 3. e4 {[%clk 0:03:00]}  Bb4+ {[%clk 0:02:54]} 4. Bd2 {[%clk 0:02:59]}  Bxd2+ {[%clk 0:02:54]} 5. Qxd2 {[%clk 0:03:00]}  d5 {[%clk 0:02:48]} 6. cxd5 {[%clk 0:02:54]}  exd5 {[%clk 0:02:48]} 7. e5 {[%clk 0:02:53]}  Ne7 {[%clk 0:02:42]} 8. Nc3 {[%clk 0:02:48]}  O-O {[%clk 0:02:22]} 9. Nf3 {[%clk 0:02:45]}  c5 {[%clk 0:02:22]} 10. Bd3 {[%clk 0:02:38]}  Nbc6 {[%clk 0:02:21]} 11. h3 {[%clk 0:02:23]}  f6 {[%clk 0:02:02]} 12. exf6 {[%clk 0:02:20]}  Rxf6 {[%clk 0:02:02]} 13. Be2 {[%clk 0:02:07]}  h6 {[%clk 0:01:47]} 14. O-O {[%clk 0:02:07]}  Be6 {[%clk 0:01:47]} 15. Rfe1 {[%clk 0:01:53]}  Qd6 {[%clk 0:01:39]} 16. dxc5 {[%clk 0:01:47]}  Qxc5 {[%clk 0:01:25]} 17. Rac1 {[%clk 0:01:48]}  Qb4 {[%clk 0:01:14]} 18. a3 {[%clk 0:01:40]}  Qa5 {[%clk 0:01:12]} 19. Nd4 {[%clk 0:01:29]}  Nxd4 {[%clk 0:01:05]} 20. Qxd4 {[%clk 0:01:30]}  Qc5 {[%clk 0:01:03]} 21. Nb5 {[%clk 0:01:26]}  Qxd4 {[%clk 0:01:03]} 22. Nxd4 {[%clk 0:01:27]}  Bf7 {[%clk 0:00:56]} 23. Bg4 {[%clk 0:01:23]}  Ng6 {[%clk 0:00:53]} 24. Rc7 {[%clk 0:01:19]}  Rf4 {[%clk 0:00:43]} 25. Ne6 {[%clk 0:01:12]}  Re4 {[%clk 0:00:26]} 26. Rxe4 {[%clk 0:01:01]}  dxe4 {[%clk 0:00:27]} 27. Nd4 {[%clk 0:00:55]}  Ne5 {[%clk 0:00:20]} 28. Be6 {[%clk 0:00:51]}  Rd8 {[%clk 0:00:18]} 29. Bxf7+ {[%clk 0:00:49]}  Nxf7 {[%clk 0:00:18]} 30. Nf5 {[%clk 0:00:48]}  Rd1+ {[%clk 0:00:16]} 31. Kh2 {[%clk 0:00:49]}  Rd2 {[%clk 0:00:16]} 32. Kg3 {[%clk 0:00:48]}  Rxb2 {[%clk 0:00:15]} 33. Rxa7 {[%clk 0:00:48]}  g6 {[%clk 0:00:12]} 34. Ne7+ {[%clk 0:00:32]}  Kg7 {[%clk 0:00:13]} 35. Nd5 {[%clk 0:00:32]}  Kf8 {[%clk 0:00:13]} 36. Nf4 {[%clk 0:00:32]}  Ne5 {[%clk 0:00:10]} 37. Ne6+ {[%clk 0:00:31]}  Ke8 {[%clk 0:00:08]} 38. h4 {[%clk 0:00:26]}  Rb3+ {[%clk 0:00:08]} 39. Kf4 {[%clk 0:00:26]}  Nd3+ {[%clk 0:00:06]} 40. Kxe4 {[%clk 0:00:24]}  Nxf2+ {[%clk 0:00:06]} 41. Ke5 {[%clk 0:00:24]}  Ng4+ {[%clk 0:00:06]} 42. Kd5 {[%clk 0:00:21]}  Nf6+ {[%clk 0:00:04]} 43. Kd6 {[%clk 0:00:19]}  Ne4+ {[%clk 0:00:03]} 44. Ke5 {[%clk 0:00:19]}  Nc5 {[%clk 0:00:02]} 45. Nxc5 {[%clk 0:00:18]}  bxc5 {[%clk 0:00:03]} 46. a4 {[%clk 0:00:19]}  Rg3 {[%clk 0:00:00]} 47. a5 {[%clk 0:00:19]} 1-0


[Site "https://www.chess.com"]

[Event "Titled Tuesday Blitz May 23 Late 2023"]
[White "Zemlyanskii, Ivan"]
[Black "Jaracz, Pawel"]
[WhiteFideId "24249971"]
[BlackFideId "1102222"]
[WhiteElo "2421"]
[BlackElo "2438"]
[Result "1-0"]
[Round "05"]
[TimeControl "180+2"]
[Date "2023.05.23"]
[WhiteClock "0:00:07"]
[BlackClock "0:00:00"]

1. d4 {[%clk 0:03:00]}  Nf6 {[%clk 0:02:56]} 2. c4 {[%clk 0:03:00]}  e6 {[%clk 0:02:56]} 3. Bf4 {[%clk 0:03:00]}  d5 {[%clk 0:02:50]} 4. Nc3 {[%clk 0:03:00]}  dxc4 {[%clk 0:02:46]} 5. e3 {[%clk 0:02:59]}  c5 {[%clk 0:02:32]} 6. Bxc4 {[%clk 0:02:58]}  cxd4 {[%clk 0:02:31]} 7. exd4 {[%clk 0:02:59]}  Bb4 {[%clk 0:02:27]} 8. Nf3 {[%clk 0:02:58]}  O-O {[%clk 0:02:26]} 9. O-O {[%clk 0:02:57]}  b6 {[%clk 0:02:17]} 10. Rc1 {[%clk 0:02:31]}  Bb7 {[%clk 0:02:16]} 11. Bg5 {[%clk 0:02:25]}  Nbd7 {[%clk 0:02:11]} 12. Re1 {[%clk 0:02:12]}  Rc8 {[%clk 0:02:10]} 13. Bb3 {[%clk 0:01:57]}  Bxc3 {[%clk 0:02:08]} 14. bxc3 {[%clk 0:01:53]}  Qc7 {[%clk 0:02:04]} 15. c4 {[%clk 0:01:51]}  Ng4 {[%clk 0:01:54]} 16. h3 {[%clk 0:01:44]}  Ngf6 {[%clk 0:01:49]} 17. Qe2 {[%clk 0:01:08]}  Rfe8 {[%clk 0:01:43]} 18. Bh4 {[%clk 0:00:57]}  Ne4 {[%clk 0:01:34]} 19. Nd2 {[%clk 0:00:42]}  Ndf6 {[%clk 0:01:20]} 20. Nxe4 {[%clk 0:00:39]}  Nxe4 {[%clk 0:01:20]} 21. Qe3 {[%clk 0:00:37]}  Nd6 {[%clk 0:01:08]} 22. Bg3 {[%clk 0:00:33]}  Qd7 {[%clk 0:01:05]} 23. Bxd6 {[%clk 0:00:24]}  Qxd6 {[%clk 0:01:05]} 24. c5 {[%clk 0:00:25]}  Qd7 {[%clk 0:00:58]} 25. Qe5 {[%clk 0:00:20]}  Red8 {[%clk 0:00:51]} 26. Rcd1 {[%clk 0:00:16]}  Qc6 {[%clk 0:00:45]} 27. f3 {[%clk 0:00:13]}  h6 {[%clk 0:00:30]} 28. Kh2 {[%clk 0:00:12]}  Qc7 {[%clk 0:00:23]} 29. Qxc7 {[%clk 0:00:11]}  Rxc7 {[%clk 0:00:24]} 30. cxb6 {[%clk 0:00:11]}  axb6 {[%clk 0:00:24]} 31. Rc1 {[%clk 0:00:12]}  Rcd7 {[%clk 0:00:21]} 32. Re5 {[%clk 0:00:09]}  Rxd4 {[%clk 0:00:20]} 33. Rb5 {[%clk 0:00:09]}  Rd2 {[%clk 0:00:19]} 34. Kg3 {[%clk 0:00:09]}  Rb2 {[%clk 0:00:14]} 35. Rxb6 {[%clk 0:00:08]}  Bd5 {[%clk 0:00:13]} 36. Rd1 {[%clk 0:00:08]}  Ra8 {[%clk 0:00:10]} 37. Bxd5 {[%clk 0:00:09]}  Rxb6 {[%clk 0:00:03]} 38. Bxa8 {[%clk 0:00:09]}  Ra6 {[%clk 0:00:04]} 39. Be4 {[%clk 0:00:08]}  f5 {[%clk 0:00:04]} 40. Bd3 {[%clk 0:00:07]}  Kf8 {[%clk 0:00:00]} 41. Bxa6 {[%clk 0:00:07]} 1-0


[Site "https://www.chess.com"]

[Event "Titled Tuesday Blitz May 23 Late 2023"]
[White "Durarbayli, Vasif"]
[Black "Adla, Diego"]
[WhiteFideId "13402935"]
[BlackFideId "100072"]
[WhiteElo "2551"]
[BlackElo "2377"]
[Result "0-1"]
[Round "05"]
[TimeControl "180+2"]
[Date "2023.05.23"]
[WhiteClock "0:00:00"]
[BlackClock "0:00:02"]

1. e4 {[%clk 0:03:00]}  e5 {[%clk 0:03:00]} 2. Nc3 {[%clk 0:03:01]}  Nf6 {[%clk 0:02:58]} 3. d4 {[%clk 0:03:01]}  exd4 {[%clk 0:02:53]} 4. Qxd4 {[%clk 0:03:01]}  Nc6 {[%clk 0:02:53]} 5. Qd3 {[%clk 0:03:02]}  d5 {[%clk 0:02:43]} 6. Bg5 {[%clk 0:03:00]}  Be7 {[%clk 0:02:38]} 7. Bxf6 {[%clk 0:02:33]}  Bxf6 {[%clk 0:02:34]} 8. exd5 {[%clk 0:02:33]}  Ne5 {[%clk 0:02:35]} 9. Qe4 {[%clk 0:02:29]}  O-O {[%clk 0:02:36]} 10. O-O-O {[%clk 0:02:29]}  Re8 {[%clk 0:02:28]} 11. Bb5 {[%clk 0:02:26]}  Bd7 {[%clk 0:02:25]} 12. Bxd7 {[%clk 0:02:24]}  Qxd7 {[%clk 0:02:26]} 13. Nge2 {[%clk 0:02:21]}  b5 {[%clk 0:02:20]} 14. Qb4 {[%clk 0:02:09]}  Nc4 {[%clk 0:02:06]} 15. Rhe1 {[%clk 0:01:46]}  a5 {[%clk 0:01:52]} 16. Qc5 {[%clk 0:01:26]}  Nxb2 {[%clk 0:01:43]} 17. Kxb2 {[%clk 0:01:26]}  b4 {[%clk 0:01:43]} 18. Qc6 {[%clk 0:01:24]}  Qg4 {[%clk 0:01:37]} 19. Nd4 {[%clk 0:01:00]}  bxc3+ {[%clk 0:01:30]} 20. Ka1 {[%clk 0:00:56]}  Reb8 {[%clk 0:01:17]} 21. Nb5 {[%clk 0:00:50]}  a4 {[%clk 0:00:54]} 22. Nxc7 {[%clk 0:00:36]}  h5 {[%clk 0:00:19]} 23. Nxa8 {[%clk 0:00:32]}  a3 {[%clk 0:00:17]} 24. Nb6 {[%clk 0:00:20]}  Qf5 {[%clk 0:00:10]} 25. Re8+ {[%clk 0:00:16]}  Kh7 {[%clk 0:00:09]} 26. Rxb8 {[%clk 0:00:07]}  Qxc2 {[%clk 0:00:08]} 27. Rb1 {[%clk 0:00:05]}  Qd3 {[%clk 0:00:04]} 28. Rc8 {[%clk 0:00:02]}  c2+ {[%clk 0:00:04]} 29. Qxf6 {[%clk 0:00:03]}  gxf6 {[%clk 0:00:03]} 30. Rxc2 {[%clk 0:00:00]}  Qxc2 {[%clk 0:00:02]} 0-1


[Site "https://www.chess.com"]